bitfinex/quotes_ETHUSD_20250715
["timestamp","ask_amount","ask_price","bid_price","bid_amount"]
[1752550613863,10.1696,2941.0,2940.9,3.40031964]
[1752550614060,5.6486,2941.0,2940.9,3.40031964]
[1752550616092,5.6486,2941.0,2940.9,1e-08]
[1752550616279,5.6486,2941.0,2940.9,3.40031964]
[1752550616880,5.6486,2941.0,2940.9,1e-08]
[1752550617078,6.21346,2941.0,2940.9,1e-08]
[1752550617288,5.6486,2941.0,2940.9,1e-08]
[1752550617494,0.1696,2941.0,2940.9,3.84411964]
[1752550617696,5.6476,2941.0,2940.9,3.84411964]
[1752550618003,5.6476,2941.0,2940.9,1e-08]
[1752550618869,6.4095,2941.0,2940.9,1e-08]
[1752550619087,5.6476,2941.0,2940.9,3.40031964]
[1752550619399,5.6476,2941.0,2940.9,1e-08]
[1752550620394,9.49880401,2941.0,2940.9,1e-08]
[1752550621319,5.6476,2941.0,2940.9,1e-08]
[1752550621483,0.1696,2941.0,2940.9,1e-08]
[1752550621681,0.1696,2941.0,2940.9,3.84411964]
[1752550621881,0.001,2941.3,2941.2,3.3999728]
[1752550622078,5.477,2941.3,2941.2,4.1550728]
[1752550622283,5.477,2941.3,2941.2,4.5988728]
[1752550622520,5.477,2941.3,2941.2,5.41572796]
[1752550623029,0.001,2941.3,2941.2,5.41572796]
[1752550623238,1e-08,2941.3,2941.2,5.44972768]
[1752550623442,1e-08,2941.3,2941.2,15.99972768]
[1752550623584,1e-08,2941.3,2941.2,15.96572796]
[1752550625310,1e-08,2941.3,2941.2,15.41572796]
[1752550626829,1e-08,2941.3,2941.2,5.41572796]
[1752550627333,1e-08,2941.3,2941.2,3.3999728]
[1752550627628,1e-08,2941.3,2941.2,3.8437728]
[1752550628032,1e-08,2941.3,2941.2,3.3999728]
[1752550628334,1e-08,2941.3,2941.2,3.8437728]
[1752550628495,1e-08,2941.3,2941.1,3.40004879]
[1752550628696,1e-08,2941.3,2941.2,3.3999728]
[1752550629130,1e-08,2941.3,2941.1,3.84381027]
[1752550629440,5.472,2941.2,2941.0,3.40014567]
[1752550630143,0.16960001,2941.3,2941.2,3.3999728]
[1752550630298,1e-08,2941.3,2941.2,3.43397252]
[1752550630509,1e-08,2941.3,2941.2,3.87777252]
[1752550630815,1e-08,2941.3,2941.2,3.8437728]
[1752550631137,1e-08,2941.3,2941.2,4.66097446]
[1752550632645,1e-08,2941.3,2941.2,15.48846607]
[1752550632846,1e-08,2941.3,2941.2,16.00446635]
[1752550634253,1e-08,2941.3,2941.2,26.00446635]
[1752550634937,1e-08,2941.3,2941.2,21.47967446]
[1752550635962,1e-08,2941.3,2941.2,16.00967446]
[1752550636142,1e-08,2941.3,2941.2,21.47867446]
[1752550637164,1e-08,2941.3,2941.2,5.45967446]
[1752550637370,1e-08,2941.3,2941.2,5.49367418]
[1752550638966,1e-08,2941.3,2941.2,4.6424728]
[1752550640467,1e-08,2941.3,2941.2,3.3999728]
[1752550640848,1e-08,2941.3,2941.2,3.8582728]
[1752550641044,1e-08,2941.3,2941.2,3.3999728]
[1752550641965,1e-08,2941.3,2941.2,14.70797252]
[1752550642278,1e-08,2941.3,2941.2,17.92193876]
[1752550642758,1e-08,2941.3,2941.2,18.47193876]
[1752550644246,5.6356,2942.4,2942.2,3.39873058]
[1752550644753,6.0654,2942.4,2942.1,3.39891847]
[1752550644958,0.4298,2942.3,2942.1,3.39891847]
[1752550645354,0.4298,2942.2,2941.9,0.1696]
[1752550645556,0.4298,2942.2,2941.2,3.24796596]
[1752550645557,0.1696,2941.9,2941.2,0.1696]
[1752550645770,0.1696,2941.7,2941.6,3.39951047]
[1752550646080,0.1696,2941.9,2941.8,3.39927935]
[1752550646266,0.1696,2941.9,2941.7,3.3993405]
[1752550646468,0.1696,2941.9,2941.6,3.39946162]
[1752550646783,0.1696,2941.7,2941.2,0.1696]
[1752550646948,5.6336,2941.7,2941.4,3.3997007]
[1752550647444,5.6336,2941.7,2941.5,3.39959301]
[1752550648070,5.6336,2941.7,2941.6,3.39951047]
[1752550649083,0.1696,2941.7,2941.6,3.39951047]
[1752550649286,5.463,2941.8,2941.7,3.3993949]
[1752550650390,0.793,2941.6,2941.0,20.03]
[1752550650554,0.793,2941.4,2941.0,20.03]
[1752550650888,5.462,2941.3,2941.2,3.39986576]
[1752550651065,15.462,2941.3,2941.2,3.39986576]
[1752550651269,0.1696,2941.2,2941.0,23.43009901]
[1752550651460,0.1696,2941.2,2941.1,3.4000884]
[1752550651665,5.6316,2941.2,2941.1,3.4000884]
[1752550652592,0.793,2941.4,2941.3,3.3998572]
[1752550652778,6.255,2941.4,2941.3,3.3998572]
[1752550653758,6.255,2941.4,2941.0,20.03]
[1752550653759,6.6848,2941.4,2941.0,20.03]
[1752550653972,0.1696,2941.2,2941.1,3.40007865]
[1752550654486,0.1696,2941.2,2941.0,23.43011393]
[1752550654795,0.1696,2941.2,2941.1,3.4000884]
[1752550655255,0.1696,2941.2,2941.1,5.02215909]
[1752550655450,0.1696,2941.7,2941.6,3.39951047]
[1752550655790,2.0,2941.9,2941.8,3.39927935]
[1752550655990,2.0,2941.9,2941.8,3.89157214]
[1752550656193,2.0,2941.9,2941.8,4.65947214]
[1752550656394,2.0,2941.9,2941.8,5.46535846]
[1752550656564,2.0,2941.9,2941.8,4.97306567]
[1752550656886,2.0,2941.9,2941.8,3.39927935]
[1752550657294,2.0,2941.9,2941.2,3.39991942]
[1752550657499,2.0,2941.9,2941.1,17.45167069]
[1752550657500,2.0,2941.9,2941.8,3.39927935]
[1752550657693,2.0,2941.9,2941.7,3.39935924]
[1752550657993,0.4298,2941.8,2941.1,0.8279]
[1752550658289,0.4298,2941.8,2941.0,20.4883]
[1752550658494,0.4298,2941.8,2941.5,3.39953314]
[1752550658670,0.4298,2941.8,2941.6,3.39950832]
[1752550658880,0.4298,2941.8,2941.5,3.39958263]
[1752550659274,0.4298,2941.7,2941.4,3.39968796]
[1752550659506,5.8888,2941.6,2941.4,3.39966016]
[1752550659804,1.2042,2941.5,2941.0,20.03]
[1752550660022,1.2042,2941.5,2941.0,23.43010999]
[1752550660184,0.7765,2941.2,2941.0,20.03]
[1752550660398,9.2878884,2941.1,2941.0,20.03]
[1752550660575,11.04440103,2941.1,2941.0,20.03]
[1752550661299,11.06710103,2941.1,2941.0,20.03]
[1752550661627,22.39360103,2941.1,2941.0,20.03]
[1752550662180,22.39360103,2941.1,2941.0,18.97373046]
[1752550662379,22.39360103,2941.1,2941.0,9.48719293]
[1752550665886,22.64564784,2941.1,2941.0,9.48719293]
[1752550666382,17.18764784,2941.1,2941.0,9.48719293]
[1752550666588,22.64564784,2941.1,2941.0,9.48719293]
[1752550669321,22.64564784,2941.1,2941.0,1e-08]
[1752550669503,22.64564784,2941.1,2940.9,1e-08]
[1752550669504,14.91290401,2941.0,2940.9,1e-08]
[1752550669704,15.95428401,2941.0,2940.9,1e-08]
[1752550670529,21.41128401,2941.0,2940.9,1e-08]
[1752550671295,15.50178401,2941.0,2940.9,1e-08]
[1752550671500,20.86028401,2941.0,2940.9,1e-08]
[1752550671747,2.00408,2941.0,2940.9,1e-08]
[1752550671886,20.27140401,2941.0,2940.9,1e-08]
[1752550672222,20.82140401,2941.0,2940.9,1e-08]
[1752550672719,17.4212,2941.0,2940.9,1e-08]
[1752550672919,10.9627,2941.0,2940.9,1e-08]
[1752550673123,19.81890401,2941.0,2940.9,1e-08]
[1752550673325,20.36890401,2941.0,2940.9,1e-08]
[1752550673490,20.82040401,2941.0,2940.9,1e-08]
[1752550673691,15.36540401,2941.0,2940.9,1e-08]
[1752550673886,20.82040401,2941.0,2940.9,1e-08]
[1752550674398,16.4177,2941.0,2940.9,0.31659031]
[1752550674719,6.4177,2941.0,2940.9,0.31659031]
[1752550674922,9.81790401,2941.0,2940.9,0.31659031]
[1752550675101,10.27040401,2941.0,2940.9,0.31659031]
[1752550675633,6.8702,2941.0,2940.9,0.31659031]
[1752550675925,10.82040401,2941.0,2940.9,0.31659031]
[1752550676301,6.9677,2941.0,2940.9,0.31659031]
[1752550676527,10.1696,2941.0,2940.9,1e-08]
[1752550676686,15.6246,2941.0,2940.9,0.31661388]
[1752550677028,10.1696,2941.0,2940.9,4.08864776]
[1752550677198,15.6236,2941.0,2940.9,1.14192813]
[1752550677400,10.1696,2941.0,2940.9,4.54224776]
[1752550677723,5.6236,2941.0,2940.9,4.54224776]
[1752550677927,0.1696,2941.0,2940.9,4.54224776]
[1752550678135,5.6236,2941.0,2940.9,4.54224776]
[1752550678644,6.3994,2941.0,2940.9,1e-08]
[1752550678935,6.3994,2941.0,2940.2,0.002]
[1752550678936,0.55,2940.9,2940.2,0.002]
[1752550679110,10.55,2940.7,2940.2,0.002]
[1752550679306,10.0,2940.5,2940.3,3.40093301]
[1752550679657,5.453,2940.4,2940.3,3.40092162]
[1752550679791,5.453,2940.4,2940.3,4.12669802]
[1752550680196,5.453,2940.4,2940.3,4.58029802]
[1752550680614,0.1696,2940.5,2940.4,3.40089783]
[1752550680895,5.6226,2940.5,2940.4,3.40089783]
[1752550681099,0.55,2940.4,2940.2,0.002]
[1752550681358,6.003,2940.3,2940.2,0.002]
[1752550681494,19.8565135,2940.3,2940.2,0.002]
[1752550682137,27.41442076,2940.3,2940.2,0.002]
[1752550682340,21.63964613,2940.3,2940.2,0.002]
[1752550682741,22.43754613,2940.3,2940.2,0.002]
[1752550684139,22.43754613,2940.3,2940.2,1e-08]
[1752550684298,14.7489135,2940.3,2940.2,1e-08]
[1752550684501,20.7734135,2940.3,2940.2,1e-08]
[1752550685035,20.7734135,2940.3,2939.7,1e-08]
[1752550685036,3.95146324,2940.0,2939.7,1e-08]
[1752550685258,22.3073992,2939.8,2939.7,1e-08]
[1752550685408,14.75018633,2939.2,2939.1,0.002]
[1752550685838,17.3784,2939.2,2939.1,0.002]
[1752550686148,22.30809359,2939.2,2939.1,0.002]
[1752550686331,27.88909359,2939.2,2939.1,0.002]
[1752550686532,16.9279,2939.2,2939.1,0.002]
[1752550686903,10.0,2939.2,2939.1,0.4556]
[1752550687107,15.587,2939.2,2939.1,1.2873]
[1752550687309,15.587,2939.2,2939.1,1.75629047]
[1752550687549,1.7695449,2939.3,2939.1,4.68970209]
[1752550687748,1.7695449,2939.3,2939.2,0.4536]
[1752550687907,7.3575449,2939.3,2939.2,0.4536]
[1752550688310,7.3575449,2939.3,2939.1,0.8337]
[1752550688513,10.55,2939.2,2939.1,0.002]
[1752550689068,14.40478633,2939.2,2939.1,0.002]
[1752550689265,14.40478633,2939.2,2938.3,1.2853]
[1752550689266,10.55,2938.5,2938.0,1.2105]
[1752550689567,0.55,2938.3,2938.1,0.4536]
[1752550689707,0.55,2938.3,2938.0,0.7569]
[1752550689708,5.588,2938.2,2938.0,0.7569]
[1752550690221,5.588,2938.2,2938.0,1.2105]
[1752550691111,5.588,2938.2,2938.0,4.61417078]
[1752550691411,5.588,2938.2,2938.0,1.2105]
[1752550691608,8.10790726,2938.1,2937.5,1.2255]
[1752550691831,10.55,2937.9,2937.2,0.7661]
[1752550692014,7.55790726,2937.6,2937.2,0.7661]
[1752550692243,5.591,2937.5,2937.2,0.7661]
[1752550692549,10.55,2937.4,2936.7,0.8031]
[1752550692771,0.55,2936.9,2936.5,0.4594]
[1752550692973,0.55,2936.7,2936.2,1.2625]
[1752550693178,8.165,2936.9,2936.3,0.4594]
[1752550693179,5.588,2936.6,2936.3,0.4594]
[1752550693332,11.51341026,2936.5,2936.3,0.46683032]
[1752550693528,11.51341026,2936.5,2935.5,3.40657468]
[1752550693529,0.55,2936.2,2935.5,3.40657468]
[1752550693901,8.37590726,2936.8,2935.6,0.4594]
[1752550694178,7.55790726,2937.3,2935.8,0.8031]
[1752550694346,5.586,2936.7,2936.6,3.40529864]
[1752550694525,5.586,2936.7,2936.6,4.84219864]
[1752550694724,1e-08,2936.9,2936.8,3.40506673]
[1752550694938,5.58300001,2936.9,2936.8,3.86446673]
[1752550695154,1e-08,2936.9,2936.8,4.67222217]
[1752550695464,5.58100001,2936.9,2936.8,4.67222217]
[1752550695670,1e-08,2936.9,2936.8,4.67222217]
[1752550695846,5.58000001,2936.9,2936.8,4.67222217]
[1752550696477,5.57800001,2936.9,2936.8,4.67222217]
[1752550697187,1e-08,2936.9,2936.8,4.67222217]
[1752550697489,1.61000115,2938.1,2938.0,3.40367597]
[1752550697650,5.575,2938.1,2937.9,3.40376612]
[1752550697843,5.575,2938.1,2937.6,0.8287]
[1752550698178,10.0,2938.3,2937.9,3.40379182]
[1752550698362,5.579,2938.2,2937.9,0.72671854]
[1752550698561,5.579,2938.2,2937.9,3.40371533]
[1752550698978,5.579,2938.2,2938.0,3.40360047]
[1752550699152,8.167,2938.4,2938.1,0.4594]
[1752550699483,5.581,2938.3,2938.2,3.40344428]
[1752550699658,5.581,2938.3,2938.0,3.40360385]
[1752550699858,5.581,2938.3,2938.1,0.34036039]
[1752550700060,5.581,2938.3,2937.9,3.40377908]
[1752550700386,0.55,2938.2,2937.9,0.25276679]
[1752550700592,0.55,2938.2,2937.8,3.40390143]
[1752550700803,0.55,2938.2,2937.4,0.4594]
[1752550701000,0.55,2938.2,2937.7,3.40399325]
[1752550701345,0.55,2938.2,2937.5,3.4041744]
[1752550701704,0.55,2937.8,2937.4,0.25830892]
[1752550701849,0.45,2938.1,2937.2,0.86274603]
[1752550701850,0.55,2938.1,2937.2,0.86274603]
[1752550702051,8.9523,2938.4,2937.7,3.4039666]
[1752550702290,8.9523,2938.4,2938.3,3.40332845]
[1752550702291,8.167,2938.4,2938.3,3.40332845]
[1752550702510,8.167,2938.4,2938.3,4.80474313]
[1752550702725,5.572,2938.4,2938.3,4.80474313]
[1752550702993,8.168,2939.5,2939.3,3.40209329]
[1752550703287,8.168,2939.5,2939.3,3.86157058]
[1752550703288,5.573,2939.4,2939.3,3.86157058]
[1752550703475,5.573,2939.4,2939.3,4.21039709]
[1752550703866,2.38113705,2940.5,2940.0,3.40126221]
[1752550704068,5.571,2940.4,2940.1,3.40123467]
[1752550704261,5.578,2940.3,2940.1,3.86055673]
[1752550704460,5.578,2940.3,2940.2,3.40112917]
[1752550704692,5.7476,2940.3,2940.2,3.86052917]
[1752550704902,5.578,2940.3,2940.2,3.86052917]
[1752550706156,5.578,2940.3,2940.2,4.11997645]
[1752550706358,2.0,2940.7,2940.3,3.40090228]
[1752550706592,2.0,2940.7,2940.5,3.40078217]
[1752550706764,0.001,2940.9,2940.8,3.40043525]
[1752550706966,2.0,2941.5,2940.9,4.21871963]
[1752550707174,2.0,2941.5,2941.4,4.34594161]
[1752550707499,2.0,2941.5,2941.4,4.63574161]
[1752550707994,2.0,2941.5,2940.9,3.4002907]
[1752550708196,2.0,2941.5,2941.0,0.7643]
[1752550708371,2.0,2941.5,2940.6,1.2237]
[1752550708567,1.09725502,2941.4,2940.6,1.2237]
[1752550708766,5.575,2941.3,2940.6,1.2237]
[1752550708974,5.575,2941.3,2940.7,3.40047279]
[1752550709181,5.575,2941.3,2940.8,3.40039923]
[1752550709471,1.09725502,2941.4,2941.2,3.3999728]
[1752550709683,5.573,2941.4,2941.3,0.4594]
[1752550709987,5.573,2941.4,2941.3,3.85923307]
[1752550710873,5.573,2941.4,2941.3,0.4594]
[1752550711071,5.573,2941.4,2940.9,3.85963615]
[1752550711286,5.567,2941.3,2941.0,0.49340204]
[1752550711518,7.567,2941.5,2941.4,3.39974161]
[1752550711798,7.567,2941.5,2940.9,3.40024894]
[1752550712007,7.567,2941.5,2940.6,0.7643]
[1752550712008,7.567,2941.5,2940.8,0.4594]
[1752550712199,7.567,2941.5,2940.9,3.40023277]
[1752550712399,8.86364396,2941.5,2940.8,3.85981379]
[1752550712600,8.86364396,2941.5,2941.0,3.40020401]
[1752550712775,8.86364396,2941.5,2940.8,0.4594]
[1752550712981,12.26333661,2941.5,2940.8,0.4594]
[1752550713190,8.86364396,2941.5,2940.8,0.4594]
[1752550713601,0.8863644,2941.4,2940.8,0.4594]
[1752550713762,0.8863644,2941.4,2940.8,3.85976251]
[1752550713967,0.8863644,2941.4,2940.9,3.40031864]
[1752550714202,0.8863644,2941.4,2940.8,3.89382929]
[1752550714500,0.8863644,2941.4,2940.8,0.49340435]
[1752550714804,0.8863644,2941.4,2940.8,0.4594]
[1752550715106,1.18530607,2941.3,2940.6,0.7643]
[1752550715304,0.55,2941.1,2940.2,1.0100311]
[1752550715505,10.55,2941.1,2939.9,0.4594]
[1752550715668,0.55,2940.7,2940.0,3.40134385]
[1752550715869,5.554,2940.6,2940.0,3.40131562]
[1752550716283,8.95473956,2940.6,2939.9,0.71987421]
[1752550716463,5.554,2940.6,2940.1,3.4011575]
[1752550716667,5.554,2940.6,2940.1,3.8605575]
[1752550717069,5.554,2940.6,2940.4,3.40089464]
[1752550717393,5.554,2940.6,2940.2,3.86052811]
[1752550717394,5.549,2940.9,2940.7,3.40043999]
[1752550717587,2.0,2941.5,2940.8,3.8938396]
[1752550717805,2.0,2941.5,2941.4,3.39974161]
[1752550717975,2.0,2941.5,2941.4,3.85914161]
[1752550718289,2.0,2941.5,2941.4,4.61744161]
[1752550718701,2.0,2941.5,2941.4,4.65143902]
[1752550718901,2.0,2941.5,2941.4,5.45656819]
[1752550719072,2.0,2941.5,2941.4,5.42257078]
[1752550720267,1e-08,2941.5,2941.4,15.42257078]
[1752550720723,1e-08,2941.9,2941.8,14.15757935]
[1752550720875,0.001,2942.8,2941.8,14.15757935]
[1752550720876,0.001,2942.8,2942.2,3.39881721]
[1752550721083,1e-08,2943.0,2942.9,3.39800876]
[1752550721396,0.001,2943.3,2943.2,3.3976624]
[1752550721702,0.001,2943.3,2943.2,0.03397662]
[1752550721871,5.555,2943.3,2942.9,0.24881286]
[1752550722205,0.001,2943.3,2943.2,3.3976624]
[1752550722373,0.001,2943.3,2943.2,3.8508624]
[1752550723205,0.001,2943.3,2943.2,3.88483902]
[1752550723376,1e-08,2943.3,2943.2,13.88483902]
[1752550723581,1e-08,2943.3,2943.2,13.8508624]
[1752550723781,1e-08,2943.3,2943.2,16.54613496]
[1752550723975,1e-08,2943.3,2943.2,22.09313496]
[1752550724922,1e-08,2943.3,2943.2,16.54613496]
[1752550725398,1e-08,2943.3,2943.2,0.4532]
[1752550725723,1e-08,2943.3,2943.2,3.8508624]
[1752550726036,1e-08,2943.3,2942.8,0.4532]
[1752550726233,1e-08,2943.3,2943.0,3.85107599]
[1752550726539,1e-08,2943.3,2943.1,0.03397777]
[1752550726688,1e-08,2943.3,2943.1,0.48717777]
[1752550726886,1e-08,2943.3,2943.2,3.8508624]
[1752550727746,1e-08,2943.6,2943.5,3.39731612]
[1752550727898,0.001,2945.1,2944.6,3.396047]
[1752550728235,0.001,2945.1,2945.0,4.17038573]
[1752550728544,0.001,2945.1,2945.0,0.97835585]
[1752550728696,0.001,2945.1,2945.0,0.42306599]
[1752550729085,0.001,2945.1,2945.0,0.1696]
[1752550729279,1.32873674,2945.1,2944.0,0.7781]
[1752550729483,0.001,2945.1,2945.0,13.39558573]
[1752550729820,0.001,2945.3,2945.2,13.39535515]
[1752550730005,0.001,2946.3,2945.2,13.39535515]
[1752550730006,0.001,2946.3,2945.4,4.1751246]
[1752550730210,0.1696,2946.2,2945.7,10.0]
[1752550730417,0.001,2946.3,2945.8,0.03394663]
[1752550730630,0.001,2946.3,2946.1,0.1696]
[1752550730933,0.4316,2946.2,2945.4,0.78]
[1752550731140,0.4316,2946.2,2943.8,3.39691399]
[1752550731141,0.8049,2945.9,2944.9,0.7724]
[1752550731429,10.0,2945.5,2944.3,0.4532]
[1752550731638,6.129,2945.4,2944.3,0.4532]
[1752550731841,0.55,2945.2,2944.3,0.4532]
[1752550731997,7.55790726,2945.1,2943.9,0.4532]
[1752550732195,0.55,2944.9,2944.2,3.39644681]
[1752550732418,1.26490263,2944.9,2944.3,3.39637464]
[1752550732735,0.8049,2945.3,2944.6,3.39593207]
[1752550732894,0.8192,2945.7,2945.2,3.39535504]
[1752550733236,5.575,2946.0,2945.3,0.48715239]
[1752550733531,5.575,2946.0,2944.9,0.48715701]
[1752550733735,7.21442,2946.0,2945.2,3.39526012]
[1752550733935,7.39807015,2946.0,2945.2,3.39526012]
[1752550734131,5.576,2945.9,2945.2,3.39526012]
[1752550734292,2.0,2945.7,2945.2,3.39524372]
[1752550734493,7.576,2945.7,2945.2,3.39524372]
[1752550734694,2.0,2945.7,2944.8,0.8055]
[1752550734943,2.0,2945.7,2945.6,3.39489407]
[1752550735237,2.0,2945.7,2945.3,0.4532]
[1752550735422,2.0,2945.7,2945.5,3.39500933]
[1752550735617,2.0,2945.7,2945.4,3.8483046]
[1752550735803,2.0,2945.7,2945.4,0.4532]
[1752550736334,2.0,2945.7,2945.1,3.39537381]
[1752550736557,2.0,2945.7,2944.8,0.8055]
[1752550736558,1.3684,2945.6,2944.8,0.8055]
[1752550736831,1.3684,2945.6,2944.9,3.39570104]
[1752550737019,1.3684,2945.6,2944.8,0.8055]
[1752550737217,5.588,2945.5,2944.8,1.2587]
[1752550737403,2.0,2945.7,2945.6,3.39489407]
[1752550737603,2.0,2945.7,2945.6,3.84809407]
[1752550737836,2.0,2945.7,2945.6,4.97398348]
[1752550738037,2.0,2945.7,2945.6,4.63449407]
[1752550738535,2.0,2945.7,2945.6,3.39489407]
[1752550738736,2.0,2945.7,2945.6,3.84809407]
[1752550740177,0.001,2946.3,2946.2,3.3942027]
[1752550740337,0.001,2946.3,2946.2,0.03394202]
[1752550740535,0.8049,2946.2,2945.3,0.4532]
[1752550740739,3.94437589,2946.1,2944.5,3.39613351]
[1752550740939,0.8049,2945.4,2944.9,0.1696]
[1752550741163,10.55,2945.2,2944.4,0.25420535]
[1752550741363,0.55,2944.9,2944.4,0.1696]
[1752550741769,0.1696,2945.0,2944.5,3.39608665]
[1752550742067,5.585,2945.1,2944.6,0.03396047]
[1752550742266,0.55,2945.0,2944.4,3.65098176]
[1752550742473,0.7196,2945.0,2944.5,3.56575047]
[1752550742671,0.8049,2945.4,2944.6,0.4532]
[1752550742971,5.584,2945.3,2944.6,3.84921943]
[1752550743153,5.584,2945.3,2945.1,3.56500104]
[1752550743333,0.8049,2945.8,2945.2,3.39527327]
[1752550743530,5.598,2945.5,2945.2,0.1696]
[1752550743839,5.598,2945.5,2945.4,3.3951246]
[1752550744040,0.9745,2945.8,2945.2,0.1696]
[1752550744247,5.595,2945.7,2944.8,1.2129]
[1752550744434,5.595,2945.7,2945.4,3.5647118]
[1752550744653,5.595,2945.7,2945.4,0.1696]
[1752550745365,5.597,2945.6,2945.4,0.1696]
[1752550746094,0.7196,2945.5,2945.0,0.1696]
[1752550746388,1.2793,2945.5,2945.0,0.1696]
[1752550747549,0.7993,2945.4,2945.0,0.1696]
[1752550747857,0.55,2945.3,2945.0,0.1696]
[1752550748183,5.586,2945.2,2944.8,3.3957931]
[1752550748356,5.586,2945.1,2944.9,3.39564218]
[1752550748546,5.584,2945.1,2944.8,0.1696]
[1752550748748,0.55,2945.0,2944.8,0.1696]
[1752550748968,0.6134,2944.9,2944.6,0.1696]
[1752550749183,0.55,2945.0,2944.0,1.2198]
[1752550749486,0.55,2944.8,2944.4,0.1696]
[1752550750098,5.578,2944.7,2944.5,3.39609342]
[1752550750308,5.578,2944.8,2944.6,0.1696]
[1752550750447,5.578,2944.8,2944.4,0.1696]
[1752550750868,0.55,2944.8,2944.4,0.1696]
[1752550751082,5.577,2944.7,2944.4,0.1696]
[1752550751491,0.55,2944.4,2943.5,3.84378772]
[1752550751696,0.55,2944.2,2943.9,0.1696]
[1752550751987,5.573,2944.1,2943.9,0.1696]
[1752550752286,0.1696,2944.3,2943.9,0.87068434]
[1752550752460,5.572,2944.5,2944.1,0.1696]
[1752550752661,0.9361,2944.9,2944.4,3.39627767]
[1752550752906,0.9361,2944.9,2944.4,0.03396277]
[1752550752907,0.55,2944.8,2944.4,0.03396277]
[1752550753052,0.55,2944.8,2944.4,3.43015774]
[1752550753247,0.55,2944.8,2944.4,0.03396277]
[1752550753490,0.46261082,2945.2,2944.2,0.9301]
[1752550753491,0.8071,2945.2,2944.5,0.4465]
[1752550753791,5.568,2945.1,2944.9,3.39559177]
[1752550754150,5.568,2945.1,2945.0,3.39558573]
[1752550754553,0.8071,2945.6,2945.0,3.84207633]
[1752550754874,0.8071,2945.6,2945.3,0.1696]
[1752550754875,5.566,2945.5,2945.3,0.1696]
[1752550755074,0.55,2945.4,2944.6,0.4465]
[1752550755277,0.90616,2945.4,2945.0,0.792]
[1752550755476,0.001,2946.3,2946.2,3.3942027]
[1752550755698,0.001,2946.3,2945.8,0.03394663]
[1752550755985,0.001,2946.3,2946.2,3.3942027]
[1752550756694,0.001,2946.3,2946.0,0.2532345]
[1752550756899,0.551,2946.3,2945.9,3.39445645]
[1752550757047,0.551,2946.3,2946.0,0.03394433]
[1752550757048,0.001,2946.3,2946.0,0.03394433]
[1752550757253,0.001,2946.3,2946.0,3.42829635]
[1752550757577,5.559,2946.3,2946.0,0.03394433]
[1752550757778,6.19132,2946.3,2946.0,0.03394433]
[1752550757978,0.63332,2946.3,2946.0,0.03394433]
[1752550758153,0.001,2946.3,2945.9,0.25725425]
[1752550758360,0.001,2946.3,2946.0,3.42835935]
[1752550758996,0.001,2946.3,2946.0,0.03394433]
[1752550759291,0.001,2946.3,2946.1,3.3942759]
[1752550759466,0.001,2946.3,2946.0,3.42834371]
[1752550759668,0.001,2946.3,2946.1,3.39425034]
[1752550759861,0.001,2946.3,2946.2,3.3942027]
[1752550760060,0.001,2946.3,2946.1,3.3942686]
[1752550760360,0.001,2946.3,2946.1,3.39427932]
[1752550760559,0.001,2946.3,2946.2,3.3942027]
[1752550760890,0.001,2946.3,2945.9,0.26013016]
[1752550761097,0.001,2946.3,2946.0,3.42830735]
[1752550761296,1.1062,2946.3,2945.5,3.39498282]
[1752550761496,1.5487,2946.3,2945.3,0.781]
[1752550761685,5.546,2946.2,2945.9,3.39447466]
[1752550761888,0.001,2946.3,2945.7,0.25239319]
[1752550762072,0.7609,2946.1,2944.9,1.2275]
[1752550762271,5.549,2946.0,2945.7,3.39467027]
[1752550762473,0.55,2945.9,2945.3,0.25117156]
[1752550762699,0.55,2945.7,2944.8,0.4465]
[1752550762861,0.63099,2946.0,2944.9,0.03395701]
[1752550763064,5.547,2945.6,2945.5,3.3949438]
[1752550763261,0.7609,2946.1,2945.6,3.39487047]
[1752550763476,0.7609,2946.1,2945.6,3.42881941]
[1752550763477,5.546,2945.7,2945.6,3.42881941]
[1752550763695,0.7609,2946.1,2945.6,3.39487047]
[1752550763908,0.7609,2946.1,2945.6,3.39481539]
[1752550764155,5.544,2946.0,2945.7,3.39475962]
[1752550764280,10.001,2946.3,2945.4,0.8123]
[1752550764483,0.001,2946.3,2945.7,0.4465]
[1752550764689,0.001,2946.3,2946.2,3.3942027]
[1752550764887,5.543,2946.3,2946.2,3.71050013]
[1752550765390,5.546,2946.3,2946.2,3.88010013]
[1752550765605,5.546,2946.3,2946.2,4.32660013]
[1752550765606,0.001,2946.3,2946.2,4.32660013]
[1752550765912,0.001,2946.3,2946.2,5.91099142]
[1752550766063,0.001,2946.3,2946.2,4.65219142]
[1752550766465,0.001,2946.3,2946.2,4.12974451]
[1752550767098,0.001,2946.3,2946.2,0.73554181]
[1752550767308,0.001,2946.3,2946.2,4.12974451]
[1752550767622,0.001,2946.3,2946.2,4.57624451]
[1752550767826,0.001,2946.3,2946.2,4.57641895]
[1752550767973,0.001,2946.3,2946.2,5.37349215]
[1752550768172,0.001,2946.3,2946.2,5.40743417]
[1752550768373,1e-08,2946.3,2946.2,5.40743417]
[1752550768644,2.0,2946.7,2946.6,3.39374193]
[1752550768770,2.0,2946.7,2946.6,4.4809138]
[1752550769130,2.0,2946.7,2946.6,5.88453313]
[1752550769336,2.0,2946.7,2946.6,3.39374193]
[1752550769826,2.0,2946.7,2946.5,3.39385075]
[1752550769827,2.0,2946.7,2946.5,3.39376295]
[1752550770172,2.0,2946.7,2946.5,3.39384877]
[1752550770439,2.0,2946.7,2946.2,0.24964438]
[1752550770735,8.92679369,2946.6,2946.0,0.002]